bitfinex-derivatives/quotes_SOLF0:USTF0_20250904
["timestamp","ask_amount","ask_price","bid_price","bid_amount"]
[1757017270709,4.35,203.09,203.03,1.95897872]
[1757017270906,4.35,203.09,203.05,1.95897872]
[1757017271206,5.49067067,203.14,203.07,9.99897872]
[1757017271503,4.35,203.21,203.14,8.04]
[1757017271710,6.30897872,203.22,203.16,1.95897872]
[1757017271904,4.35,203.21,203.17,4.76710824]
[1757017272098,4.35,203.21,203.18,9.48983412]
[1757017272306,4.35,203.21,203.19,4.72272588]
[1757017272505,4.35,203.21,203.2,4.72272588]
[1757017273011,4.35,203.21,203.14,9.99897872]
[1757017273308,4.35,203.21,203.15,9.23300885]
[1757017273508,4.35,203.21,203.16,19.23198757]
[1757017273709,4.35,203.21,203.17,4.47290715]
[1757017273911,4.35,203.21,203.16,9.99897872]
[1757017274209,4.35,203.21,203.17,0.0320398]
[1757017274407,6.30897872,203.18,203.17,0.0320398]
[1757017278409,1.95897872,203.18,203.17,0.0320398]
[1757017278906,4.33,203.2,203.17,0.0320398]
[1757017279301,1.95897872,203.21,203.17,0.0320398]
[1757017279505,4.33,203.2,203.17,0.0320398]
[1757017280309,1.95897872,203.21,203.17,0.0320398]
[1757017280507,4.33,203.2,203.17,0.0320398]
[1757017281012,6.28897872,203.23,203.17,9.49101852]
[1757017281307,4.33,203.27,203.21,1.95897872]
[1757017282309,4.33,203.27,203.23,1.95897872]
[1757017282511,6.28897872,203.29,203.24,7.5]
[1757017282715,4.33,203.3,203.23,1.95897872]
[1757017282910,6.28897872,203.3,203.23,1.95897872]
[1757017283915,4.33,203.3,203.23,1.95897872]
[1757017284115,6.28897872,203.3,203.23,1.95897872]
[1757017285417,6.28897872,203.28,203.23,9.45897872]
[1757017285818,1.95897872,203.28,203.23,9.45897872]
[1757017286020,0.85664701,203.31,203.23,1.95897872]
[1757017286319,1.95897872,203.25,203.2,7.5]
[1757017286513,4.33,203.24,203.2,7.5]
[1757017287213,6.28897872,203.25,203.19,1.95897872]
[1757017287410,4.33,203.25,203.17,3.05227281]
[1757017290316,4.33,203.25,203.16,7.5]
[1757017290519,7.38227281,203.25,203.16,7.5]
[1757017290822,4.33,203.24,203.16,7.5]
[1757017291317,4.33,203.27,203.13,7.5]
[1757017291522,4.33,203.27,203.17,7.5]
[1757017291928,7.38227281,203.27,203.17,7.5]
[1757017293629,3.05227281,203.27,203.17,7.5]
[1757017293825,4.33,203.26,203.17,7.5]
[1757017294025,7.38227281,203.24,203.14,7.5]
[1757017294321,3.05227281,203.24,203.14,7.5]
[1757017294523,4.33,203.2,203.14,7.5]
[1757017294924,4.33,203.2,203.12,317.18]
[1757017295824,7.38227281,203.18,203.1,7.5]
[1757017296029,7.38227281,203.18,203.11,4.4398784]
[1757017296229,7.38227281,203.18,203.1,7.5]
[1757017296430,7.38227281,203.18,203.11,4.44112735]
[1757017296645,7.38227281,203.18,203.1,7.5]
[1757017297030,4.33,203.17,203.1,7.5]
[1757017297827,3.05227281,203.12,203.01,7.5]
[1757017298021,3.05227281,203.12,203.0,32.81227281]
[1757017298022,3.05227281,203.12,203.03,7.5]
[1757017298328,3.05227281,203.09,203.04,4.44331214]
[1757017298526,4.33,203.08,202.98,3.86741444]
[1757017298825,4.33,203.05,202.99,4.44753776]
[1757017299032,7.38227281,203.06,203.0,4.44753776]
[1757017299226,7.38227281,203.06,202.95,324.56]
[1757017299420,4.33,203.05,203.01,0.03169483]
[1757017299927,3.05227281,203.1,203.02,7.5]
[1757017299928,4.33,203.1,203.02,7.5]
[1757017300129,4.33,203.1,203.03,4.44876193]
[1757017300331,3.05227281,203.14,203.05,7.5]
[1757017301030,3.05227281,203.14,203.06,4.4495019]
[1757017301332,3.05227281,203.14,203.07,0.03382164]
[1757017301521,4.33,203.15,203.07,0.03382164]
[1757017304527,4.33,203.15,203.08,4.4540248]
[1757017304732,4.33,203.15,203.09,11.9540248]
[1757017304929,4.33,203.15,203.09,7.5]
[1757017306126,4.33,203.15,203.1,4.45438379]
[1757017306332,4.33,203.15,203.08,7.5]
[1757017306629,7.94568869,203.22,203.09,4.45519798]
[1757017306835,4.33,203.21,203.1,4.45519798]
[1757017307133,4.33,203.21,203.08,7.5]
[1757017307334,4.33,203.21,203.13,0.03145222]
[1757017310138,4.33,203.21,203.14,4.45938645]
[1757017310439,4.33,203.21,203.13,0.03145222]
[1757017313038,4.33,203.21,203.13,7.38145222]
[1757017314350,4.32,203.26,203.15,7.35]
[1757017314537,4.32,203.26,203.16,4.3258642]
[1757017314728,4.32,203.26,203.17,4.3258642]
[1757017314929,4.32,203.26,203.19,0.03472001]
[1757017318437,4.32,203.22,203.19,0.03472001]
[1757017318830,7.94568869,203.23,203.19,0.03472001]
[1757017319030,4.32,203.22,203.19,0.03472001]
[1757017319234,7.94568869,203.23,203.19,0.03472001]
[1757017319636,4.32,203.22,203.19,0.03472001]
[1757017320640,7.94568869,203.23,203.19,0.03472001]
[1757017321036,4.32,203.22,203.19,0.03472001]
[1757017321544,4.32,203.26,203.19,0.03472001]
[1757017324446,4.32,203.26,203.2,7.35]
[1757017324942,122.06,203.3,203.2,7.35]
[1757017325246,122.06,203.3,203.22,7.35]
[1757017327648,4.32,203.29,203.18,41.83]
[1757017327841,4.32,203.29,203.19,4.32332916]
[1757017328048,4.32,203.29,203.18,7.35]
[1757017334646,122.91654159,203.3,203.18,7.35]
[1757017334845,4.32,203.29,203.18,7.35]
[1757017335949,122.91654159,203.3,203.18,7.35]
[1757017336151,4.32,203.29,203.18,7.35]
[1757017336348,4.32,203.26,203.18,7.35]
[1757017338249,4.33,203.26,203.1,8.02]
[1757017338450,4.33,203.22,203.11,4.3243307]
[1757017338650,4.33,203.22,203.12,4.3243307]
[1757017338855,4.33,203.22,203.1,8.02]
[1757017339042,4.33,203.22,203.12,8.02]
[1757017339747,4.33,203.22,203.14,8.02]
[1757017342953,7.94568869,203.27,203.14,8.02]
[1757017343149,4.33,203.26,203.14,8.02]
[1757017343549,7.94568869,203.27,203.14,8.02]
[1757017343951,4.33,203.22,203.14,8.02]
[1757017345652,3.05492997,203.18,203.14,8.02]
[1757017345856,3.05492997,203.18,203.1,8.02]
[1757017346051,3.05492997,203.18,203.11,4.33272329]
[1757017346354,3.05492997,203.18,203.12,4.33272329]
[1757017346555,3.05492997,203.18,203.13,12.35272329]
[1757017346556,7.38492997,203.18,203.13,12.35272329]
[1757017346746,7.38492997,203.18,203.13,8.02]
[1757017347149,7.38492997,203.18,203.14,4.33541137]
[1757017347352,7.38492997,203.18,203.14,8.02]
[1757017349651,1.95514787,203.16,203.14,8.02]
[1757017350757,1.95514787,203.16,203.1,8.02]
[1757017350959,1.95514787,203.18,203.12,8.02]
[1757017351259,1.95514787,203.18,203.14,8.02]
[1757017351454,1.95514787,203.18,203.12,8.02]
[1757017351763,1.95514787,203.18,203.14,8.02]
[1757017352062,1.95514787,203.18,203.12,8.02]
[1757017352262,1.95514787,203.18,203.13,4.34264632]
[1757017352556,1.95514787,203.18,203.14,4.34264632]
[1757017352749,1.95514787,203.18,203.12,8.02]
[1757017352951,1.95514787,203.18,203.13,4.34264632]
[1757017353255,1.95514787,203.18,203.14,4.34264632]
[1757017353457,1.95514787,203.18,203.16,8.02]
[1757017354359,1.95514787,203.18,203.12,8.02]
[1757017354557,1.95514787,203.18,203.13,8.24253645]
[1757017354758,1.95514787,203.18,203.14,4.34299271]
[1757017354958,1.95514787,203.18,203.16,8.02]
[1757017356058,1.95514787,203.18,203.12,8.02]
[1757017356254,1.95514787,203.16,203.14,8.02]
[1757017356967,1.95514787,203.16,203.1,8.02]
[1757017357263,1.95514787,203.16,203.11,8.24495359]
[1757017357459,6.28514787,203.16,203.12,8.24495359]
[1757017357652,1.95514787,203.14,203.13,4.34429982]
[1757017359062,4.33,203.16,203.13,4.34429982]
[1757017359266,1.95514787,203.14,203.08,1.95514787]
[1757017359559,1.95514787,203.14,203.09,8.24657341]
[1757017359764,1.95514787,203.16,203.11,8.02]
[1757017359961,1.95514787,203.16,203.13,8.02]
[1757017360262,1.95514787,203.16,203.11,8.02]
[1757017360463,1.95514787,203.18,203.12,4.34456769]
[1757017360655,1.95514787,203.18,203.14,8.02]
[1757017360858,1.95514787,203.18,203.13,8.02]
[1757017361059,1.95514787,203.18,203.14,4.34341049]
[1757017361259,1.95514787,203.18,203.16,8.02]
[1757017363363,1.95514787,203.18,203.13,8.02]
[1757017363563,1.95514787,203.18,203.14,4.34354513]
[1757017363762,1.95514787,203.18,203.15,4.34354513]
[1757017363957,1.95514787,203.18,203.16,12.36354513]
[1757017364160,1.95514787,203.18,203.16,8.02]
[1757017364460,4.33,203.27,203.13,8.02]
[1757017364662,1.95514787,203.2,203.15,8.02]
[1757017364862,1.95514787,203.18,203.16,12.36301692]
[1757017365062,1.95514787,203.18,203.17,4.34301692]
[1757017365566,1.95514787,203.18,203.12,8.02]
[1757017365863,1.95514787,203.18,203.13,8.24358189]
[1757017366058,1.95514787,203.18,203.14,4.34345208]
[1757017366258,1.95514787,203.18,203.15,12.36345208]
[1757017366457,1.95514787,203.18,203.16,4.34345208]
[1757017366758,1.95514787,203.18,203.15,8.02]
[1757017367061,1.95514787,203.16,203.1,8.02]
[1757017367262,1.95514787,203.16,203.09,1.95514787]
[1757017367263,1.95514787,203.16,203.12,8.02]
[1757017367460,1.95514787,203.16,203.13,12.36285921]
[1757017367663,1.95514787,203.16,203.14,4.34285921]
[1757017367861,1.95514787,203.16,203.15,4.34285921]
[1757017368362,1.95514787,203.16,203.15,12.34285921]
[1757017368761,1.95514787,203.18,203.16,8.0]
[1757017370668,1.95514787,203.18,203.12,8.0]
[1757017370866,1.95514787,203.18,203.13,4.34326852]
[1757017371064,1.95514787,203.18,203.14,4.34326852]
[1757017371360,1.95514787,203.18,203.15,4.34326852]
[1757017371561,1.95514787,203.18,203.16,8.0]
[1757017373467,1.95514787,203.18,203.11,1.95514787]
[1757017373663,1.95514787,203.18,203.12,8.24951196]
[1757017373966,1.95514787,203.18,203.13,8.24951196]
[1757017374264,1.95514787,203.18,203.14,8.24958798]
[1757017374568,1.95514787,203.18,203.15,4.34602821]
[1757017374767,1.95514787,203.18,203.17,8.0]
[1757017374963,4.33,203.22,203.17,8.0]
[1757017375159,1.95514787,203.19,203.17,8.0]
[1757017377459,1.95514787,203.19,203.12,8.0]
[1757017377664,1.95514787,203.16,203.14,8.0]
[1757017377967,1.95514787,203.16,203.15,4.3482802]
[1757017378362,1.95514787,203.16,203.15,12.3482802]
[1757017379367,1.95514787,203.16,203.15,16.25624728]
[1757017379668,4.33,203.2,203.16,8.0]
[1757017379862,1.95514787,203.17,203.16,8.0]
[1757017380056,1.95514787,203.17,203.16,12.35081578]
[1757017380671,1.95514787,203.17,203.16,8.0]
[1757017384169,1.95514787,203.18,203.16,8.0]
[1757017384677,1.95514787,203.18,203.11,6.07482752]
[1757017384678,1.95514787,203.18,203.12,8.0]
[1757017384863,1.95514787,203.18,203.13,3.91227449]
[1757017385064,1.95514787,203.18,203.14,3.91227449]
[1757017385264,1.95514787,203.18,203.16,8.0]
[1757017385771,1.95514787,203.18,203.12,8.0]
[1757017385971,1.95514787,203.18,203.13,3.91222171]
[1757017386171,1.95514787,203.18,203.15,8.0]
[1757017386370,1.95514787,203.18,203.17,8.0]
[1757017386971,4.33,203.23,203.17,8.0]
[1757017387272,4.33,203.23,203.11,4.11967965]
[1757017387273,1.95514787,203.23,203.18,3.91013839]
[1757017387568,1.95514787,203.23,203.19,4.73126532]
[1757017387768,1.95514787,203.23,203.21,8.0]
[1757017388766,4.33,203.28,203.21,8.0]
[1757017388974,1.95514787,203.22,203.21,8.0]
[1757017389170,1.95514787,203.22,203.21,12.72986101]
[1757017389874,4.33,203.28,203.21,12.72986101]
[1757017390072,1.95514787,203.24,203.18,8.0]
[1757017390366,4.33,203.28,203.13,4.11967965]
[1757017390367,1.95514787,203.27,203.2,8.0]
[1757017390573,1.95514787,203.28,203.22,8.0]
[1757017390867,1.95514787,203.28,203.23,4.72875571]
[1757017391072,1.95514787,203.28,203.24,4.72875571]
[1757017391268,1.95514787,203.29,203.22,8.0]
[1757017391574,1.95514787,203.29,203.24,8.0]
[1757017391773,1.95514787,203.29,203.22,8.0]
[1757017391981,1.95514787,203.29,203.23,4.7212516]
[1757017392168,1.95514787,203.29,203.24,4.72074915]
[1757017392476,1.95514787,203.29,203.23,1.95514787]
[1757017392669,1.95514787,203.29,203.24,4.71822507]
[1757017392875,1.95514787,203.29,203.24,8.0]
[1757017393074,1.95514787,203.29,203.25,4.71749369]
[1757017393270,1.95514787,203.29,203.24,8.0]
[1757017393674,1.95514787,203.29,203.23,1.95514787]
[1757017393875,1.95514787,203.29,203.24,4.72543664]
[1757017394084,1.95514787,203.29,203.23,1.95514787]
[1757017394375,1.95514787,203.29,203.24,4.72524466]
[1757017394575,1.95514787,203.29,203.23,1.95514787]
[1757017394772,1.95514787,203.29,203.25,8.0]
[1757017394977,1.95514787,203.29,203.24,8.0]
[1757017395879,1.95514787,203.29,203.23,1.95514787]
[1757017396175,6.28514787,203.29,203.25,8.0]
[1757017396377,6.28514787,203.29,203.24,8.0]
[1757017396679,6.28514787,203.29,203.23,1.95514787]
[1757017396878,6.28514787,203.29,203.24,8.0]
[1757017397073,1.95514787,203.27,203.23,8.0]
[1757017397279,1.95514787,203.27,203.22,8.0]
[1757017397480,1.95514787,203.29,203.23,4.7180026]
[1757017397681,1.95514787,203.29,203.22,8.0]
[1757017397977,1.95514787,203.27,203.21,7.39]
[1757017398178,1.95514787,203.27,203.23,7.39]
[1757017398481,1.95514787,203.27,203.21,7.39]
[1757017398683,1.95514787,203.27,203.23,7.39]
[1757017398875,1.95514787,203.27,203.21,7.39]
[1757017399074,1.95514787,203.27,203.2,1.95514787]
[1757017399075,1.95514787,203.27,203.23,7.39]
[1757017399285,1.95514787,203.27,203.21,7.39]
[1757017399480,1.95514787,203.27,203.23,7.39]
[1757017399884,6.28514787,203.27,203.21,7.39]
[1757017400181,6.28514787,203.27,203.23,7.39]
[1757017400571,1.95514787,203.27,203.21,7.39]
[1757017400775,1.95514787,203.27,203.22,4.71585764]
[1757017400974,1.95514787,203.27,203.21,7.39]
[1757017401177,4.33,203.3,203.23,7.39]
[1757017401472,1.95514787,203.3,203.23,7.39]
[1757017402280,317.93646781,203.34,203.24,6.66933025]
[1757017402586,4.33,203.35,203.25,7.39]
[1757017402587,1.95514787,203.32,203.25,7.39]
[1757017403378,4.33,203.35,203.27,7.39]
[1757017403580,1.95514787,203.34,203.29,7.39]
[1757017403885,0.85628868,203.37,203.29,7.39]
[1757017404088,1.95514787,203.35,203.29,7.39]
[1757017405184,1.95514787,203.34,203.29,7.39]
[1757017405490,1.95514787,203.34,203.28,7.39]
[1757017407185,4.33,203.36,203.28,7.39]
[1757017407385,1.95514787,203.34,203.28,7.39]
[1757017407786,1.95514787,203.32,203.28,7.39]
[1757017407993,1.95514787,203.32,203.27,7.39]
[1757017408197,1.95514787,203.33,203.27,7.39]
[1757017408888,4.33,203.36,203.27,7.39]
[1757017409393,1.95514787,203.33,203.27,7.39]
[1757017409609,0.85628868,203.37,203.27,7.39]
[1757017409610,4.33,203.34,203.27,7.39]
[1757017412494,4.33,203.31,203.27,7.39]
[1757017412694,4.33,203.31,203.21,3.0498568]
[1757017412997,0.85628868,203.37,203.23,7.39]
[1757017412998,7.3798568,203.33,203.23,7.39]
[1757017413190,7.3798568,203.33,203.24,4.70404097]
[1757017413390,7.3798568,203.33,203.22,7.39]
[1757017413590,7.3798568,203.33,203.24,7.39]
[1757017413892,7.3798568,203.33,203.26,7.39]
[1757017414792,4.33,203.33,203.26,7.39]
[1757017415698,3.0498568,203.35,203.26,7.39]
[1757017416593,5.18628868,203.37,203.26,7.39]
[1757017416799,5.18628868,203.37,203.28,7.39]
[1757017417692,4.33,203.37,203.28,7.39]
[1757017418694,0.85618334,203.41,203.3,3.0498568]
[1757017418898,7.3798568,203.42,203.31,7.39]
[1757017420097,4.33,203.38,203.31,7.39]
[1757017422191,4.33,203.35,203.31,7.39]
[1757017423003,4.33,203.35,203.26,3.0498568]
[1757017423203,3.0498568,203.37,203.28,7.39]
[1757017423393,3.0498568,203.37,203.29,4.70677004]
[1757017423702,3.0498568,203.37,203.28,7.39]
[1757017423903,4.33,203.38,203.29,4.70634522]
[1757017424103,4.33,203.38,203.31,7.39]
[1757017425902,0.85608856,203.45,203.31,7.39]
[1757017426200,3.0498568,203.41,203.31,7.39]
[1757017426904,4.33,203.4,203.31,7.39]
[1757017428999,7.3698568,203.44,203.33,7.83]
[1757017429199,7.3698568,203.44,203.34,4.70736012]
[1757017429394,7.3698568,203.44,203.35,7.83]
[1757017429395,4.32,203.44,203.35,7.83]
[1757017429596,0.85608856,203.45,203.35,10.8798568]
[1757017429800,0.85608856,203.45,203.36,12.5351894]
[1757017430095,0.85608856,203.45,203.29,4.11967965]
[1757017430096,4.32,203.44,203.37,7.83]
[1757017430500,3.0498568,203.44,203.31,9.6]
[1757017430809,4.32,203.43,203.33,7.83]
[1757017431104,4.32,203.43,203.34,4.70470167]
[1757017431303,4.32,203.43,203.35,4.70470167]
[1757017431509,4.32,203.43,203.36,4.70470167]
[1757017431805,4.32,203.43,203.33,7.83]
[1757017432000,4.32,203.43,203.34,8.4758622]
[1757017432303,4.32,203.43,203.35,4.59974356]
[1757017432509,4.32,203.43,203.36,4.59974356]
[1757017432697,4.32,203.43,203.33,7.83]
[1757017433005,4.32,203.43,203.34,8.4753417]
[1757017433303,4.32,203.43,203.35,4.59947659]
[1757017433500,4.32,203.43,203.36,4.59947659]
[1757017433702,4.32,203.43,203.33,7.83]
[1757017433898,4.32,203.43,203.34,8.47571857]
[1757017434202,4.32,203.43,203.35,4.59969921]
[1757017434504,4.32,203.43,203.33,7.83]
[1757017434505,4.32,203.43,203.36,4.59969921]
[1757017434703,4.32,203.43,203.33,7.83]
[1757017434905,4.32,203.43,203.34,8.47661917]
[1757017435108,4.32,203.43,203.35,4.6002092]
[1757017435402,4.32,203.43,203.36,4.6002092]
[1757017435616,4.32,203.43,203.33,7.83]
[1757017435800,4.32,203.43,203.34,8.47789753]
[1757017436000,4.32,203.43,203.35,4.60071395]
[1757017436202,4.32,203.43,203.36,4.60071395]
[1757017436399,4.32,203.43,203.33,7.83]
[1757017436600,4.32,203.43,203.34,8.4777358]
[1757017436900,4.32,203.43,203.35,4.60052586]
[1757017437094,4.32,203.43,203.36,4.60052586]
[1757017437294,4.32,203.43,203.33,7.83]
[1757017437495,3.0498568,203.41,203.34,8.47748005]
[1757017437701,3.0498568,203.41,203.35,4.60030588]
[1757017437898,7.3698568,203.41,203.37,7.83]
[1757017438096,4.32,203.4,203.37,7.83]
[1757017439500,0.85608856,203.45,203.33,3.0498568]
[1757017439708,7.3698568,203.45,203.35,7.83]
[1757017439905,3.0498568,203.42,203.36,12.43014812]
[1757017440106,3.0498568,203.42,203.31,27.9498568]
[1757017440107,7.3698568,203.42,203.38,7.83]
[1757017440406,3.0498568,203.45,203.38,7.83]
[1757017440606,7.3698568,203.45,203.38,7.83]
[1757017441004,3.0498568,203.45,203.38,7.83]
[1757017441200,4.32,203.44,203.38,7.83]
[1757017442401,4.32,203.48,203.38,7.83]
[1757017443105,3.90570324,203.49,203.38,7.83]
[1757017443106,7.3698568,203.45,203.38,7.83]
[1757017443500,3.0498568,203.45,203.38,7.83]
[1757017443705,7.3698568,203.48,203.38,7.83]
[1757017445301,4.32,203.48,203.38,7.83]
[1757017445501,7.3698568,203.48,203.38,7.83]
[1757017448411,4.32,203.47,203.38,7.83]
[1757017451105,7.3698568,203.47,203.38,7.83]
[1757017459020,4.32,203.47,203.39,4.59636687]
[1757017459209,7.3698568,203.51,203.41,8.05]
[1757017460310,4.32,203.51,203.41,8.05]
[1757017460511,7.3698568,203.51,203.41,8.05]
[1757017460710,3.0498568,203.48,203.41,8.05]
[1757017460922,7.3698568,203.48,203.41,8.05]
[1757017461913,4.32,203.48,203.41,8.05]
[1757017462420,4.32,203.48,203.42,4.59923559]
[1757017462621,4.32,203.48,203.41,8.05]
[1757017463520,4.32,203.48,203.42,4.59801941]
[1757017463725,4.32,203.48,203.41,8.05]
[1757017463919,4.32,203.48,203.42,4.59790991]
[1757017464117,4.32,203.48,203.41,8.05]
[1757017464317,4.32,203.48,203.42,4.59765318]
[1757017464516,4.32,203.48,203.41,8.05]
[1757017464716,4.32,203.48,203.42,4.59798634]
[1757017464919,4.32,203.48,203.41,8.05]
[1757017465219,4.32,203.48,203.42,4.597981]
[1757017465418,4.32,203.48,203.41,8.05]
[1757017465619,4.32,203.55,203.43,8.05]
[1757017465828,7.3698568,203.52,203.44,12.64852293]
[1757017466011,7.3698568,203.52,203.44,8.05]
[1757017466209,4.32,203.52,203.44,8.05]
[1757017467521,4.32,203.52,203.45,4.5975081]
[1757017467721,4.32,203.52,203.44,8.05]
[1757017467924,4.32,203.52,203.45,4.59678331]
[1757017468223,4.32,203.52,203.44,8.05]
[1757017468422,4.32,203.52,203.45,4.59668594]
[1757017468620,4.32,203.52,203.44,8.05]
[1757017468820,4.32,203.52,203.45,4.59667833]
[1757017469023,4.32,203.52,203.44,8.05]
[1757017469214,4.32,203.52,203.45,4.59592528]
[1757017469420,1.94849026,203.51,203.46,4.59592528]
[1757017469624,1.94849026,203.51,203.45,1.94849026]
[1757017470224,1.94849026,203.51,203.46,8.05]
[1757017470624,1.94849026,203.51,203.45,1.94849026]
[1757017470824,1.94849026,203.51,203.47,8.05]
[1757017471019,1.94849026,203.51,203.46,8.05]
[1757017471626,1.94849026,203.51,203.45,1.94849026]
[1757017471928,6.26849026,203.51,203.47,8.05]
[1757017472126,6.26849026,203.51,203.46,8.05]
[1757017472328,6.26849026,203.51,203.45,1.94849026]
[1757017472624,6.26849026,203.51,203.47,8.05]
[1757017472927,6.26849026,203.51,203.45,1.94849026]
[1757017473123,1.94849026,203.49,203.46,4.59600073]
[1757017473330,6.26849026,203.49,203.45,8.05]
[1757017473521,6.26849026,203.49,203.44,8.05]
[1757017473728,6.26849026,203.49,203.45,4.59667154]
[1757017473926,6.26849026,203.49,203.46,8.05]
[1757017474426,4.32,203.49,203.46,8.05]
[1757017475023,4.32,203.52,203.44,8.05]
[1757017475219,1.94849026,203.51,203.45,4.60014697]
[1757017475420,1.94849026,203.51,203.44,8.05]
[1757017475619,1.94849026,203.51,203.45,4.59919566]
[1757017475828,4.32,203.52,203.44,8.05]
[1757017476130,1.94849026,203.5,203.45,4.59949896]
[1757017476330,1.94849026,203.5,203.44,8.05]
[1757017476629,1.94849026,203.5,203.45,4.59943758]
[1757017476833,1.94849026,203.5,203.43,1.94849026]
[1757017477031,1.94849026,203.5,203.44,12.64945938]
[1757017477230,6.26849026,203.5,203.46,8.05]
[1757017477631,6.26849026,203.5,203.44,8.05]
[1757017477834,6.26849026,203.5,203.39,95.8]
[1757017477835,4.32,203.55,203.46,8.05]
[1757017478027,6.26849026,203.55,203.49,8.05]
[1757017478224,4.32,203.55,203.49,8.05]
[1757017478429,4.32,203.61,203.52,1.94849026]
[1757017478630,4.32,203.61,203.42,4.11967965]
[1757017478631,1.94849026,203.6,203.53,8.05]
[1757017479231,4.32,203.6,203.46,8.05]
[1757017479436,1.94849026,203.57,203.5,9.99849026]
[1757017481033,4.32,203.54,203.5,8.05]
[1757017481631,4.32,203.54,203.49,8.05]
[1757017481941,4.32,203.54,203.48,1.94849026]
[1757017482132,1.94849026,203.55,203.49,12.64106616]
[1757017482334,1.94849026,203.55,203.49,8.05]
[1757017482833,1.94849026,203.56,203.5,1.94849026]
[1757017483134,1.94849026,203.56,203.49,8.05]
[1757017483336,4.32,203.53,203.49,8.05]
[1757017483536,4.32,203.53,203.48,1.94849026]
[1757017483731,4.32,203.53,203.49,8.05]
[1757017483933,1.94849026,203.54,203.48,1.94849026]
[1757017484139,1.94849026,203.54,203.49,8.05]
[1757017484338,1.94849026,203.54,203.48,1.94849026]
[1757017484729,1.94849026,203.54,203.47,8.05]
[1757017484934,4.32,203.51,203.47,8.05]
[1757017485339,4.32,203.51,203.45,8.05]
[1757017485541,4.32,203.51,203.46,4.60820934]
[1757017485744,4.32,203.51,203.47,8.05]
[1757017486240,4.32,203.51,203.45,8.05]
[1757017486241,6.26849026,203.51,203.45,8.05]
[1757017486543,6.26849026,203.51,203.46,4.60840663]
[1757017486736,6.26849026,203.51,203.45,8.05]
[1757017486937,6.26849026,203.51,203.46,4.60841819]
[1757017487133,6.26849026,203.51,203.45,8.05]
[1757017487337,1.94849026,203.51,203.46,4.60877576]
[1757017487641,1.94849026,203.51,203.45,8.05]
[1757017487836,1.94849026,203.51,203.46,4.60915645]
[1757017488042,1.94849026,203.51,203.45,7.37]
[1757017488242,1.94849026,203.51,203.46,4.60983493]
[1757017488446,1.94849026,203.51,203.45,7.37]
[1757017488742,1.94849026,203.51,203.46,4.60984029]
[1757017488937,1.94849026,203.51,203.45,7.37]
[1757017489136,1.94849026,203.51,203.46,4.60962396]
[1757017489343,1.94849026,203.51,203.45,1.94849026]
[1757017489544,1.94849026,203.51,203.46,4.60994624]
[1757017489743,1.94849026,203.51,203.46,7.37]
[1757017490042,1.94849026,203.51,203.48,7.37]
[1757017490234,1.94849026,203.51,203.46,7.37]
[1757017490435,1.94849026,203.51,203.48,7.37]
[1757017490836,1.94849026,203.51,203.45,1.94849026]
[1757017491036,1.94849026,203.51,203.46,4.60966612]
[1757017491236,1.94849026,203.51,203.48,7.37]
[1757017491636,4.32,203.54,203.46,7.37]
[1757017491841,1.94849026,203.51,203.48,7.37]
[1757017493742,4.32,203.54,203.48,7.37]
[1757017493944,0.8553521,203.61,203.52,7.37]
[1757017493945,4.32,203.61,203.52,7.37]
[1757017494148,1.94849026,203.59,203.53,4.60982632]
[1757017494442,0.85514191,203.66,203.55,7.37]
[1757017494646,0.85514191,203.66,203.55,9.31849026]
[1757017494647,1.94849026,203.61,203.55,9.31849026]
[1757017494839,1.94849026,203.61,203.55,7.37]
[1757017495045,4.32,203.65,203.55,7.37]